[Event "Early-Titled-Tuesday-Blitz-March-12-2024"]
[Site "Chess.com"]
[Date "2024.03.12"]
[Round "9"]
[White "Kostukov_Alex"]
[Black "pfalcon1949"]
[Result "1-0"]
[WhiteElo "2316"]
[BlackElo "1958"]
[TimeControl "180+1"]
[EndTime "9:41:50 PDT"]
[Termination "Kostukov_Alex won on time"]

1. g3 {[%clk 0:02:59.1]} 1... d5 {[%clk 0:02:58.5]} 2. Bg2 {[%clk 0:02:57.5]}
2... e6 {[%clk 0:02:57.4]} 3. d3 {[%clk 0:02:55.4]} 3... Nf6 {[%clk 0:02:56.8]}
4. e4 {[%clk 0:02:55.6]} 4... Be7 {[%clk 0:02:54.8]} 5. Qe2 {[%clk 0:02:52.4]}
5... O-O {[%clk 0:02:49.8]} 6. Nf3 {[%clk 0:02:49.6]} 6... c5 {[%clk 0:02:48]}
7. O-O {[%clk 0:02:48.6]} 7... Nc6 {[%clk 0:02:43.2]} 8. e5 {[%clk 0:02:48]}
8... Nd7 {[%clk 0:02:41.4]} 9. c4 {[%clk 0:02:48.1]} 9... dxc4 {[%clk
0:02:29.5]} 10. dxc4 {[%clk 0:02:47.4]} 10... Qc7 {[%clk 0:02:30.1]} 11. Bf4
{[%clk 0:02:44.6]} 11... b6 {[%clk 0:02:29.6]} 12. Nc3 {[%clk 0:02:43.3]} 12...
a6 {[%clk 0:02:26.2]} 13. Rfd1 {[%clk 0:02:37.6]} 13... Bb7 {[%clk 0:02:24.6]}
14. h4 {[%clk 0:02:24.9]} 14... Rac8 {[%clk 0:02:08.6]} 15. Nd5 {[%clk
0:02:13.2]} 15... Qd8 {[%clk 0:01:57.8]} 16. Nxe7+ {[%clk 0:02:10.4]} 16... Nxe7
{[%clk 0:01:48.4]} 17. Rd2 {[%clk 0:02:01.1]} 17... Qc7 {[%clk 0:01:40.2]} 18.
g4 {[%clk 0:01:54.7]} 18... Rfd8 {[%clk 0:01:36.6]} 19. Rad1 {[%clk 0:01:54.3]}
19... Nf8 {[%clk 0:01:35.3]} 20. h5 {[%clk 0:01:53.8]} 20... Rxd2 {[%clk
0:01:33.3]} 21. Qxd2 {[%clk 0:01:51.3]} 21... h6 {[%clk 0:01:18.1]} 22. Qd6
{[%clk 0:01:50.5]} 22... Nc6 {[%clk 0:01:09.5]} 23. Qxc7 {[%clk 0:01:35.7]}
23... Rxc7 {[%clk 0:01:09]} 24. b3 {[%clk 0:01:35.7]} 24... Nh7 {[%clk
0:00:55.6]} 25. Rd6 {[%clk 0:01:31.2]} 25... Kf8 {[%clk 0:00:53.3]} 26. g5
{[%clk 0:01:20.7]} 26... hxg5 {[%clk 0:00:51.3]} 27. Nxg5 {[%clk 0:01:20.6]}
27... Nxg5 {[%clk 0:00:47.6]} 28. Bxg5 {[%clk 0:01:20.8]} 28... Kg8 {[%clk
0:00:13.2]} 29. f4 {[%clk 0:01:12.6]} 29... Kh7 {[%clk 0:00:10.7]} 30. Be4+
{[%clk 0:01:11.4]} 30... g6 {[%clk 0:00:10.2]} 31. hxg6+ {[%clk 0:01:10.1]}
31... fxg6 {[%clk 0:00:10.1]} 32. Rxe6 {[%clk 0:01:10.6]} 32... Nd4 {[%clk
0:00:05.2]} 33. Bxg6+ {[%clk 0:00:56.5]} 33... Kg7 {[%clk 0:00:03.7]} 34. Rf6
{[%clk 0:00:56.5]} 1-0

[Event "Early-Titled-Tuesday-Blitz-March-12-2024"]
[Site "Chess.com"]
[Date "2024.03.12"]
[Round "9"]
[White "Alexchess1984"]
[Black "Shuvalov"]
[Result "0-1"]
[WhiteElo "2735"]
[BlackElo "2559"]
[TimeControl "180+1"]
[EndTime "9:41:58 PDT"]
[Termination "Shuvalov won on time"]

1. e4 {[%clk 0:03:00.9]} 1... e6 {[%clk 0:03:00]} 2. d4 {[%clk 0:03:00.2]} 2...
d5 {[%clk 0:03:00.6]} 3. e5 {[%clk 0:02:59.6]} 3... c5 {[%clk 0:03:00.5]} 4. c3
{[%clk 0:02:59.9]} 4... Nc6 {[%clk 0:03:01]} 5. Nf3 {[%clk 0:02:59.2]} 5... Qb6
{[%clk 0:03:01.1]} 6. Be2 {[%clk 0:02:55.5]} 6... Nh6 {[%clk 0:02:57]} 7. Bxh6
{[%clk 0:02:52.3]} 7... gxh6 {[%clk 0:02:57.9]} 8. Qd2 {[%clk 0:02:49.3]} 8...
Bg7 {[%clk 0:02:57.5]} 9. O-O {[%clk 0:02:48.3]} 9... O-O {[%clk 0:02:57.2]} 10.
Na3 {[%clk 0:02:44.1]} 10... cxd4 {[%clk 0:02:53.9]} 11. cxd4 {[%clk 0:02:40.9]}
11... Bd7 {[%clk 0:02:54]} 12. Nc2 {[%clk 0:02:34.5]} 12... h5 {[%clk
0:02:51.2]} 13. Rab1 {[%clk 0:02:31.9]} 13... f6 {[%clk 0:02:46.1]} 14. exf6
{[%clk 0:02:19.6]} 14... Rxf6 {[%clk 0:02:47]} 15. b4 {[%clk 0:02:00.3]} 15...
Raf8 {[%clk 0:02:41.7]} 16. b5 {[%clk 0:01:58.3]} 16... Ne7 {[%clk 0:02:40.3]}
17. Ne5 {[%clk 0:01:58.4]} 17... Be8 {[%clk 0:02:40.3]} 18. Qg5 {[%clk
0:01:52.4]} 18... Qc7 {[%clk 0:02:29.7]} 19. Ne3 {[%clk 0:01:45.9]} 19... Nf5
{[%clk 0:02:22.9]} 20. Rfc1 {[%clk 0:01:30.8]} 20... Qd6 {[%clk 0:02:17.2]} 21.
Bxh5 {[%clk 0:01:08.1]} 21... Bxh5 {[%clk 0:02:09.3]} 22. Qxh5 {[%clk 0:01:09]}
22... Nxd4 {[%clk 0:02:04.2]} 23. Rf1 {[%clk 0:00:32.4]} 23... Rh6 {[%clk
0:01:56.6]} 24. Qd1 {[%clk 0:00:15.6]} 24... Qxe5 {[%clk 0:01:54.1]} 25. Ng4
{[%clk 0:00:14.9]} 25... Qg5 {[%clk 0:01:36.9]} 26. Nxh6+ {[%clk 0:00:14.7]}
26... Qxh6 {[%clk 0:01:37.8]} 27. Qd3 {[%clk 0:00:10.5]} 27... Be5 {[%clk
0:01:27.5]} 28. h3 {[%clk 0:00:07.5]} 28... Rf3 {[%clk 0:01:17.1]} 29. Qd1
{[%clk 0:00:05]} 29... Qg5 {[%clk 0:01:04.9]} 30. Rb4 {[%clk 0:00:02.2]} 30...
Rf4 {[%clk 0:01:00.1]} 31. Qd3 {[%clk 0:00:01.2]} 31... Nf3+ {[%clk 0:00:53.7]}
32. Kh1 {[%clk 0:00:01.6]} 32... Nh4 {[%clk 0:00:51.3]} 0-1

[Event "Early-Titled-Tuesday-Blitz-March-12-2024"]
[Site "Chess.com"]
[Date "2024.03.12"]
[Round "9"]
[White "Semen_Khanin"]
[Black "Hanging_pointer"]
[Result "0-1"]
[WhiteElo "2886"]
[BlackElo "2733"]
[TimeControl "180+1"]
[EndTime "9:42:01 PDT"]
[Termination "Hanging_pointer won by resignation"]

1. e4 {[%clk 0:03:00.9]} 1... c6 {[%clk 0:03:00.2]} 2. d4 {[%clk 0:02:59.9]}
2... d5 {[%clk 0:03:01.1]} 3. Nd2 {[%clk 0:02:59.4]} 3... dxe4 {[%clk
0:03:01.6]} 4. Nxe4 {[%clk 0:02:59.6]} 4... Nf6 {[%clk 0:03:02.4]} 5. Nxf6+
{[%clk 0:02:59.8]} 5... gxf6 {[%clk 0:03:03.3]} 6. Nf3 {[%clk 0:02:57.6]} 6...
Bg4 {[%clk 0:03:03]} 7. Be2 {[%clk 0:02:56.6]} 7... e6 {[%clk 0:03:02.9]} 8. O-O
{[%clk 0:02:55.7]} 8... Bg7 {[%clk 0:03:02.3]} 9. c3 {[%clk 0:02:54.7]} 9... O-O
{[%clk 0:03:02.3]} 10. Nh4 {[%clk 0:02:52.1]} 10... Bxe2 {[%clk 0:03:00.7]} 11.
Qxe2 {[%clk 0:02:52.5]} 11... Nd7 {[%clk 0:03:00.9]} 12. Nf3 {[%clk 0:02:40.6]}
12... Qa5 {[%clk 0:02:57.8]} 13. a4 {[%clk 0:02:29]} 13... Qh5 {[%clk
0:02:55.1]} 14. h3 {[%clk 0:02:28.4]} 14... a5 {[%clk 0:02:51.6]} 15. Re1 {[%clk
0:02:26.7]} 15... Rfe8 {[%clk 0:02:47.5]} 16. Bf4 {[%clk 0:02:15.4]} 16... f5
{[%clk 0:02:43.7]} 17. Nd2 {[%clk 0:02:12.9]} 17... Qxe2 {[%clk 0:02:44.6]} 18.
Rxe2 {[%clk 0:02:13.4]} 18... Nb6 {[%clk 0:02:40.6]} 19. Be5 {[%clk 0:02:13.4]}
19... Bxe5 {[%clk 0:02:39.5]} 20. Rxe5 {[%clk 0:02:13.5]} 20... Red8 {[%clk
0:02:35.6]} 21. g4 {[%clk 0:02:11]} 21... fxg4 {[%clk 0:02:34.8]} 22. hxg4
{[%clk 0:02:11.9]} 22... Rd5 {[%clk 0:02:33.3]} 23. f4 {[%clk 0:01:56.8]} 23...
h6 {[%clk 0:02:26.2]} 24. Kf2 {[%clk 0:01:56.5]} 24... Kg7 {[%clk 0:02:25.8]}
25. b3 {[%clk 0:01:52]} 25... Rxe5 {[%clk 0:02:21.3]} 26. fxe5 {[%clk
0:01:52.1]} 26... Rd8 {[%clk 0:02:15.7]} 27. Ne4 {[%clk 0:01:51.3]} 27... Nd5
{[%clk 0:02:12.4]} 28. Ke2 {[%clk 0:01:40.9]} 28... f6 {[%clk 0:02:01.6]} 29.
exf6+ {[%clk 0:01:38.2]} 29... Nxf6 {[%clk 0:02:01.2]} 30. Nxf6 {[%clk
0:01:34.6]} 30... Kxf6 {[%clk 0:02:01.3]} 31. Rh1 {[%clk 0:01:34.3]} 31... Kg6
{[%clk 0:01:59.9]} 32. Rh5 {[%clk 0:01:33.5]} 32... Rd5 {[%clk 0:01:45.4]} 33.
Rh1 {[%clk 0:01:23.1]} 33... h5 {[%clk 0:01:43.3]} 34. Rxh5 {[%clk 0:01:19]}
34... Rxh5 {[%clk 0:01:44.2]} 35. gxh5+ {[%clk 0:01:19.3]} 35... Kxh5 {[%clk
0:01:43.4]} 36. Kf3 {[%clk 0:01:19.6]} 36... Kg5 {[%clk 0:01:41.8]} 37. Ke4
{[%clk 0:01:19.7]} 37... Kf6 {[%clk 0:01:41.9]} 38. b4 {[%clk 0:01:15.3]} 38...
b6 {[%clk 0:01:21.4]} 39. bxa5 {[%clk 0:01:15.4]} 39... bxa5 {[%clk 0:01:22.3]}
40. Kf4 {[%clk 0:00:46.9]} 40... Kf7 {[%clk 0:01:16.6]} 41. Ke5 {[%clk
0:00:40.9]} 41... Ke7 {[%clk 0:01:15.8]} 42. c4 {[%clk 0:00:41.2]} 42... Kd7
{[%clk 0:01:14.8]} 43. Kf6 {[%clk 0:00:10.6]} 43... Kd6 {[%clk 0:01:14.8]} 44.
c5+ {[%clk 0:00:10.8]} 44... Kd5 {[%clk 0:01:14.3]} 45. Ke7 {[%clk 0:00:11.2]}
45... e5 {[%clk 0:01:11.4]} 46. dxe5 {[%clk 0:00:07.6]} 46... Kxe5 {[%clk
0:01:12.3]} 0-1

[Event "Early-Titled-Tuesday-Blitz-March-12-2024"]
[Site "Chess.com"]
[Date "2024.03.12"]
[Round "9"]
[White "jk13"]
[Black "Peng_Li-Min"]
[Result "0-1"]
[WhiteElo "2677"]
[BlackElo "2813"]
[TimeControl "180+1"]
[EndTime "9:42:01 PDT"]
[Termination "Peng_Li-Min won by resignation"]

1. e4 {[%clk 0:02:56.9]} 1... Nc6 {[%clk 0:02:59.8]} 2. Nf3 {[%clk 0:02:55.9]}
2... d5 {[%clk 0:02:59.9]} 3. exd5 {[%clk 0:02:55.7]} 3... Qxd5 {[%clk
0:03:00.8]} 4. Nc3 {[%clk 0:02:56.2]} 4... Qh5 {[%clk 0:03:00.8]} 5. Be2 {[%clk
0:02:36.8]} 5... Bg4 {[%clk 0:03:00.1]} 6. d3 {[%clk 0:02:33.7]} 6... e5 {[%clk
0:02:59.5]} 7. Be3 {[%clk 0:02:32.7]} 7... f5 {[%clk 0:02:59]} 8. h3 {[%clk
0:02:16.9]} 8... O-O-O {[%clk 0:02:58.5]} 9. Ng5 {[%clk 0:02:08.4]} 9... Bxe2
{[%clk 0:02:52.8]} 10. Qxe2 {[%clk 0:02:08]} 10... Qg6 {[%clk 0:02:53.4]} 11.
Nf3 {[%clk 0:01:44.7]} 11... Nd4 {[%clk 0:02:05.4]} 12. Bxd4 {[%clk 0:00:28.7]}
12... exd4 {[%clk 0:02:04.6]} 13. Nb1 {[%clk 0:00:26.4]} 13... Re8 {[%clk
0:01:55.6]} 14. Ne5 {[%clk 0:00:26.3]} 14... Qxg2 {[%clk 0:01:54.1]} 15. Rf1
{[%clk 0:00:26.7]} 15... f4 {[%clk 0:01:37.2]} 16. Nd2 {[%clk 0:00:26.1]} 16...
Bd6 {[%clk 0:01:36.9]} 17. Ndc4 {[%clk 0:00:25.9]} 17... Bxe5 {[%clk 0:01:31.3]}
18. Nxe5 {[%clk 0:00:26.8]} 18... Qg5 {[%clk 0:01:21.8]} 19. O-O-O {[%clk
0:00:25.8]} 19... f3+ {[%clk 0:01:21.4]} 20. Qd2 {[%clk 0:00:25.9]} 20... Qxd2+
{[%clk 0:01:20.5]} 21. Kxd2 {[%clk 0:00:25.7]} 21... Rxe5 {[%clk 0:01:21.2]} 22.
Rg1 {[%clk 0:00:25.8]} 22... Re2+ {[%clk 0:01:18.4]} 23. Kc1 {[%clk 0:00:25.6]}
23... g6 {[%clk 0:01:12.2]} 24. Rg4 {[%clk 0:00:25.1]} 24... Nh6 {[%clk
0:01:09.3]} 25. Rxd4 {[%clk 0:00:23.9]} 25... Nf5 {[%clk 0:01:08.8]} 26. Rf4
{[%clk 0:00:23.9]} 26... Rxf2 {[%clk 0:01:07.9]} 27. b4 {[%clk 0:00:24.6]} 27...
Re8 {[%clk 0:01:04]} 28. Kb2 {[%clk 0:00:23.3]} 28... Ree2 {[%clk 0:01:02.7]}
29. Rc1 {[%clk 0:00:23.9]} 29... Ne3 {[%clk 0:00:59.9]} 30. Kb3 {[%clk
0:00:23.2]} 30... Nf5 {[%clk 0:00:53.1]} 31. a3 {[%clk 0:00:21.9]} 31... c6
{[%clk 0:00:52.2]} 32. a4 {[%clk 0:00:21.5]} 32... Kc7 {[%clk 0:00:51.3]} 33. b5
{[%clk 0:00:22.1]} 33... c5 {[%clk 0:00:51.1]} 34. c3 {[%clk 0:00:22.8]} 34...
Rb2+ {[%clk 0:00:44.2]} 35. Kc4 {[%clk 0:00:22.6]} 35... Kd6 {[%clk 0:00:44.7]}
36. Re1 {[%clk 0:00:21]} 36... Rfe2 {[%clk 0:00:40.5]} 37. Rxe2 {[%clk 0:00:18]}
37... fxe2 {[%clk 0:00:41.4]} 38. Re4 {[%clk 0:00:18.2]} 38... Ng3 {[%clk
0:00:41.5]} 39. Re3 {[%clk 0:00:17.9]} 39... Rb1 {[%clk 0:00:40.5]} 0-1

[Event "Early-Titled-Tuesday-Blitz-March-12-2024"]
[Site "Chess.com"]
[Date "2024.03.12"]
[Round "9"]
[White "Gabcur"]
[Black "KSho99"]
[Result "0-1"]
[WhiteElo "2288"]
[BlackElo "2146"]
[TimeControl "180+1"]
[EndTime "9:42:04 PDT"]
[Termination "KSho99 won by resignation"]

1. d4 {[%clk 0:02:55.6]} 1... e6 {[%clk 0:02:56.6]} 2. Nc3 {[%clk 0:02:54]} 2...
d5 {[%clk 0:02:52]} 3. Bf4 {[%clk 0:02:53.4]} 3... Nf6 {[%clk 0:02:48]} 4. e3
{[%clk 0:02:53.7]} 4... Bd6 {[%clk 0:02:45.2]} 5. Nf3 {[%clk 0:02:53.5]} 5...
O-O {[%clk 0:02:42.8]} 6. Bd3 {[%clk 0:02:52.7]} 6... b6 {[%clk 0:02:28.7]} 7.
O-O {[%clk 0:02:49.4]} 7... Ba6 {[%clk 0:02:24.4]} 8. Bxa6 {[%clk 0:02:47.3]}
8... Nxa6 {[%clk 0:02:24.5]} 9. Bxd6 {[%clk 0:02:35.9]} 9... Qxd6 {[%clk
0:02:21]} 10. Qe2 {[%clk 0:02:36.8]} 10... Nb4 {[%clk 0:02:19.4]} 11. a3 {[%clk
0:02:30.1]} 11... Nc6 {[%clk 0:02:19.5]} 12. Rad1 {[%clk 0:02:23.7]} 12... Rfd8
{[%clk 0:02:14.4]} 13. Nb5 {[%clk 0:02:10.5]} 13... Qd7 {[%clk 0:02:09.4]} 14.
c4 {[%clk 0:02:11.1]} 14... dxc4 {[%clk 0:01:36.2]} 15. Qxc4 {[%clk 0:02:08.1]}
15... Na5 {[%clk 0:01:32.2]} 16. Qe2 {[%clk 0:02:04]} 16... a6 {[%clk 0:01:24]}
17. Nc3 {[%clk 0:02:03.3]} 17... Qe7 {[%clk 0:01:17.9]} 18. Ne5 {[%clk
0:01:49.5]} 18... Qe8 {[%clk 0:01:15.8]} 19. Qf3 {[%clk 0:01:38]} 19... Nd5
{[%clk 0:01:14]} 20. Ne4 {[%clk 0:01:24.2]} 20... f6 {[%clk 0:01:08.6]} 21. Nd3
{[%clk 0:01:22]} 21... Rac8 {[%clk 0:00:56.9]} 22. h4 {[%clk 0:01:21.1]} 22...
Nc4 {[%clk 0:00:49]} 23. Rc1 {[%clk 0:01:16.6]} 23... Nd6 {[%clk 0:00:39.1]} 24.
Ng3 {[%clk 0:01:14.9]} 24... c6 {[%clk 0:00:33.1]} 25. e4 {[%clk 0:01:10]} 25...
Ne7 {[%clk 0:00:27]} 26. Rfd1 {[%clk 0:01:05.1]} 26... Nb5 {[%clk 0:00:26.4]}
27. Qe3 {[%clk 0:01:05]} 27... Nxd4 {[%clk 0:00:24.1]} 28. h5 {[%clk 0:00:57.7]}
28... e5 {[%clk 0:00:22.1]} 29. f4 {[%clk 0:00:47.7]} 29... c5 {[%clk
0:00:20.1]} 30. fxe5 {[%clk 0:00:46.6]} 30... Nec6 {[%clk 0:00:09.6]} 31. exf6
{[%clk 0:00:41.6]} 31... gxf6 {[%clk 0:00:10]} 32. Qf3 {[%clk 0:00:37.3]} 32...
Nxf3+ {[%clk 0:00:09.7]} 0-1

[Event "Early-Titled-Tuesday-Blitz-March-12-2024"]
[Site "Chess.com"]
[Date "2024.03.12"]
[Round "9"]
[White "emeli_chess"]
[Black "AlessiaSanteramo"]
[Result "0-1"]
[WhiteElo "2371"]
[BlackElo "2266"]
[TimeControl "180+1"]
[EndTime "9:42:05 PDT"]
[Termination "AlessiaSanteramo won by resignation"]

1. d4 {[%clk 0:03:00.9]} 1... Nf6 {[%clk 0:02:25.7]} 2. c4 {[%clk 0:03:00.5]}
2... e6 {[%clk 0:02:24.1]} 3. Nc3 {[%clk 0:03:00.9]} 3... Bb4 {[%clk 0:02:23.7]}
4. Qc2 {[%clk 0:03:01.4]} 4... O-O {[%clk 0:02:21.9]} 5. e4 {[%clk 0:03:01.4]}
5... d5 {[%clk 0:02:21.8]} 6. e5 {[%clk 0:03:01.7]} 6... Ne4 {[%clk 0:02:22.4]}
7. Bd3 {[%clk 0:03:01.9]} 7... c5 {[%clk 0:02:22.2]} 8. Nf3 {[%clk 0:03:02.2]}
8... Nc6 {[%clk 0:02:19.4]} 9. O-O {[%clk 0:03:00.9]} 9... cxd4 {[%clk
0:02:15.9]} 10. Nxe4 {[%clk 0:02:59.6]} 10... dxe4 {[%clk 0:02:12.7]} 11. Bxe4
{[%clk 0:02:59.9]} 11... h6 {[%clk 0:02:08.3]} 12. Bf4 {[%clk 0:02:41.1]} 12...
Bc5 {[%clk 0:01:30.1]} 13. a3 {[%clk 0:02:37.1]} 13... a5 {[%clk 0:01:30.1]} 14.
Rad1 {[%clk 0:02:36]} 14... Qb6 {[%clk 0:01:28.5]} 15. Qe2 {[%clk 0:02:29.5]}
15... Bd7 {[%clk 0:01:24.8]} 16. Bb1 {[%clk 0:02:26.8]} 16... Ne7 {[%clk
0:01:20.6]} 17. Qe4 {[%clk 0:02:10.9]} 17... Ng6 {[%clk 0:01:20]} 18. Nh4 {[%clk
0:01:56.3]} 18... Bc6 {[%clk 0:01:16.7]} 19. Qd3 {[%clk 0:01:52.2]} 19... Qxb2
{[%clk 0:00:53.7]} 20. Nxg6 {[%clk 0:01:47.6]} 20... fxg6 {[%clk 0:00:53.6]} 21.
Bxh6 {[%clk 0:01:47.3]} 21... Rf5 {[%clk 0:00:40.4]} 22. Bc1 {[%clk 0:01:41.4]}
22... Qb6 {[%clk 0:00:34.8]} 23. Bc2 {[%clk 0:01:31.8]} 23... Raf8 {[%clk
0:00:31.1]} 24. Qg3 {[%clk 0:01:29.8]} 24... d3 {[%clk 0:00:22.2]} 25. Qxd3
{[%clk 0:01:24.4]} 25... Rxf2 {[%clk 0:00:11.6]} 26. Rxf2 {[%clk 0:01:23.9]}
26... Rxf2 {[%clk 0:00:11.1]} 27. Qd8+ {[%clk 0:01:22]} 27... Rf8+ {[%clk
0:00:10.8]} 28. Kh1 {[%clk 0:01:05.1]} 28... Rxd8 {[%clk 0:00:09.8]} 29. Rf1
{[%clk 0:01:04.2]} 29... Rf8 {[%clk 0:00:07.4]} 30. Re1 {[%clk 0:01:03.2]} 30...
Qc7 {[%clk 0:00:07]} 31. h3 {[%clk 0:01:01.8]} 31... Qf7 {[%clk 0:00:07.1]} 32.
Rd1 {[%clk 0:00:42.6]} 32... Qf2 {[%clk 0:00:07.1]} 0-1

[Event "Early-Titled-Tuesday-Blitz-March-12-2024"]
[Site "Chess.com"]
[Date "2024.03.12"]
[Round "9"]
[White "FlemingA"]
[Black "WilsonPalencia21"]
[Result "0-1"]
[WhiteElo "2424"]
[BlackElo "2567"]
[TimeControl "180+1"]
[EndTime "9:42:12 PDT"]
[Termination "WilsonPalencia21 won by resignation"]

1. Nf3 {[%clk 0:03:00.9]} 1... c5 {[%clk 0:02:56.7]} 2. g3 {[%clk 0:03:00.6]}
2... g6 {[%clk 0:02:56.6]} 3. Bg2 {[%clk 0:03:01.2]} 3... Bg7 {[%clk 0:02:57.5]}
4. O-O {[%clk 0:03:02]} 4... Nc6 {[%clk 0:02:57.8]} 5. d3 {[%clk 0:03:01.9]}
5... e5 {[%clk 0:02:57.5]} 6. e4 {[%clk 0:03:02.1]} 6... Nge7 {[%clk 0:02:57.6]}
7. Nc3 {[%clk 0:03:02.4]} 7... O-O {[%clk 0:02:57.8]} 8. Nd5 {[%clk 0:02:54.6]}
8... d6 {[%clk 0:02:57]} 9. c3 {[%clk 0:02:49.3]} 9... h6 {[%clk 0:02:55.5]} 10.
Re1 {[%clk 0:02:42.9]} 10... Be6 {[%clk 0:02:54.8]} 11. Nxe7+ {[%clk 0:02:39]}
11... Qxe7 {[%clk 0:02:52.7]} 12. Be3 {[%clk 0:02:29.5]} 12... f5 {[%clk
0:02:51]} 13. Qd2 {[%clk 0:02:03.6]} 13... f4 {[%clk 0:02:47.3]} 14. gxf4 {[%clk
0:02:00.1]} 14... Bg4 {[%clk 0:02:46.6]} 15. h3 {[%clk 0:01:41.7]} 15... Bxf3
{[%clk 0:02:46]} 16. Bxf3 {[%clk 0:01:42.1]} 16... exf4 {[%clk 0:02:44.8]} 17.
Bxf4 {[%clk 0:01:42]} 17... Qf6 {[%clk 0:02:44.1]} 18. Bxh6 {[%clk 0:01:23.1]}
18... Qxf3 {[%clk 0:02:43.6]} 19. Bxg7 {[%clk 0:01:16.5]} 19... Kxg7 {[%clk
0:02:43.2]} 20. Re3 {[%clk 0:01:16.6]} 20... Qf4 {[%clk 0:02:42.7]} 21. Qe2
{[%clk 0:01:15.9]} 21... Ne5 {[%clk 0:02:41.7]} 22. Rg3 {[%clk 0:01:15.4]} 22...
Nf3+ {[%clk 0:02:40]} 23. Kh1 {[%clk 0:01:12.7]} 23... Nh4 {[%clk 0:02:32.9]}
24. Kg1 {[%clk 0:00:49.7]} 24... Rf6 {[%clk 0:02:27.5]} 25. Rg4 {[%clk 0:00:42]}
25... Qf3 {[%clk 0:02:25.9]} 26. Qxf3 {[%clk 0:00:35.4]} 26... Nxf3+ {[%clk
0:02:25.5]} 27. Kg2 {[%clk 0:00:36.3]} 27... Ne5 {[%clk 0:02:25.7]} 28. Rg3
{[%clk 0:00:34.4]} 28... Raf8 {[%clk 0:02:25.2]} 29. Rf1 {[%clk 0:00:32.9]}
29... Rf3 {[%clk 0:02:19.6]} 30. d4 {[%clk 0:00:25.9]} 30... Rxg3+ {[%clk
0:02:17.9]} 31. Kxg3 {[%clk 0:00:26]} 31... cxd4 {[%clk 0:02:16.1]} 32. cxd4
{[%clk 0:00:26.9]} 32... Nc6 {[%clk 0:02:08.5]} 33. Rd1 {[%clk 0:00:24.9]} 33...
g5 {[%clk 0:02:05.8]} 34. a3 {[%clk 0:00:23.5]} 34... Rf4 {[%clk 0:02:05.2]} 35.
f3 {[%clk 0:00:20.8]} 35... Kf6 {[%clk 0:02:03.6]} 36. Rd2 {[%clk 0:00:19.8]}
36... d5 {[%clk 0:01:58.8]} 37. exd5 {[%clk 0:00:14.4]} 37... Rxd4 {[%clk
0:01:57.2]} 38. Rxd4 {[%clk 0:00:06.6]} 38... Nxd4 {[%clk 0:01:57.2]} 39. Kg4
{[%clk 0:00:04.9]} 39... Nf5 {[%clk 0:01:57.1]} 40. f4 {[%clk 0:00:04.5]} 40...
Ne3+ {[%clk 0:01:54.8]} 41. Kf3 {[%clk 0:00:05.1]} 41... Nxd5 {[%clk 0:01:54.8]}
42. fxg5+ {[%clk 0:00:06]} 42... Kxg5 {[%clk 0:01:54.9]} 43. Ke4 {[%clk
0:00:06.9]} 43... Nb6 {[%clk 0:01:53]} 44. Kd4 {[%clk 0:00:06.1]} 44... Kf6
{[%clk 0:01:52.4]} 45. b3 {[%clk 0:00:04.7]} 45... Ke6 {[%clk 0:01:52.4]} 46.
Kc5 {[%clk 0:00:05.1]} 46... Nd7+ {[%clk 0:01:51.7]} 47. Kd4 {[%clk 0:00:05.4]}
47... Ne5 {[%clk 0:01:50.1]} 48. Ke4 {[%clk 0:00:05.4]} 48... Ng6 {[%clk
0:01:49.6]} 49. Kf3 {[%clk 0:00:05.3]} 49... Kf5 {[%clk 0:01:49]} 50. Kg3 {[%clk
0:00:05.8]} 50... Kg5 {[%clk 0:01:48.9]} 51. Kh2 {[%clk 0:00:04.6]} 51... Kf4
{[%clk 0:01:48.1]} 52. Kg2 {[%clk 0:00:05.5]} 52... Nh4+ {[%clk 0:01:46.7]} 53.
Kh2 {[%clk 0:00:05.9]} 53... Kf3 {[%clk 0:01:46.2]} 54. Kh1 {[%clk 0:00:06.4]}
54... Kg3 {[%clk 0:01:35.7]} 0-1

[Event "Early-Titled-Tuesday-Blitz-March-12-2024"]
[Site "Chess.com"]
[Date "2024.03.12"]
[Round "9"]
[White "dropstoneDP"]
[Black "Zohid6"]
[Result "1-0"]
[WhiteElo "2999"]
[BlackElo "2898"]
[TimeControl "180+1"]
[EndTime "9:42:16 PDT"]
[Termination "dropstoneDP won by resignation"]

1. e4 {[%clk 0:02:57.7]} 1... e5 {[%clk 0:03:00]} 2. Nf3 {[%clk 0:02:56.8]} 2...
Nf6 {[%clk 0:03:00.2]} 3. Nxe5 {[%clk 0:02:55.3]} 3... d6 {[%clk 0:03:00.2]} 4.
Nf3 {[%clk 0:02:55.8]} 4... Nxe4 {[%clk 0:03:00.4]} 5. d4 {[%clk 0:02:54.5]}
5... d5 {[%clk 0:03:00.3]} 6. Bd3 {[%clk 0:02:54.5]} 6... Bd6 {[%clk 0:03:00.5]}
7. O-O {[%clk 0:02:54.7]} 7... O-O {[%clk 0:02:59.8]} 8. c4 {[%clk 0:02:54.8]}
8... c6 {[%clk 0:02:59.7]} 9. Re1 {[%clk 0:02:54.3]} 9... Bf5 {[%clk 0:02:54.5]}
10. cxd5 {[%clk 0:02:53.7]} 10... cxd5 {[%clk 0:02:54.2]} 11. Nc3 {[%clk
0:02:54.2]} 11... Nxc3 {[%clk 0:02:53.3]} 12. bxc3 {[%clk 0:02:55.1]} 12... Bxd3
{[%clk 0:02:53.9]} 13. Qxd3 {[%clk 0:02:54.8]} 13... Qd7 {[%clk 0:02:51.2]} 14.
Ng5 {[%clk 0:02:48.3]} 14... g6 {[%clk 0:02:45.7]} 15. Rb1 {[%clk 0:02:42.1]}
15... b6 {[%clk 0:02:38.2]} 16. Qh3 {[%clk 0:01:29.8]} 16... Qxh3 {[%clk
0:02:08.4]} 17. Nxh3 {[%clk 0:01:30.7]} 17... Nd7 {[%clk 0:02:05.8]} 18. Rb5
{[%clk 0:01:30.1]} 18... Rfe8 {[%clk 0:02:01.8]} 19. Rxe8+ {[%clk 0:01:28.4]}
19... Rxe8 {[%clk 0:02:02.7]} 20. Kf1 {[%clk 0:01:25.9]} 20... Nf6 {[%clk
0:01:51.5]} 21. g3 {[%clk 0:01:25]} 21... Bc7 {[%clk 0:01:47.4]} 22. Bf4 {[%clk
0:01:22]} 22... a6 {[%clk 0:01:43.8]} 23. Rb4 {[%clk 0:01:16]} 23... Rc8 {[%clk
0:01:39.3]} 24. Bxc7 {[%clk 0:01:14.7]} 24... Rxc7 {[%clk 0:01:40.2]} 25. Rxb6
{[%clk 0:01:13.2]} 25... Ne4 {[%clk 0:01:35.7]} 26. Rxa6 {[%clk 0:01:08.8]}
26... Rxc3 {[%clk 0:01:35.3]} 27. Ra5 {[%clk 0:01:08.3]} 27... g5 {[%clk
0:01:24.6]} 28. Rxd5 {[%clk 0:01:02]} 28... g4 {[%clk 0:01:21.8]} 29. Ng5 {[%clk
0:00:43.3]} 29... Nf6 {[%clk 0:01:19.7]} 30. Re5 {[%clk 0:00:39.7]} 30... Rc1+
{[%clk 0:00:50.5]} 31. Kg2 {[%clk 0:00:39.3]} 31... h6 {[%clk 0:00:45.2]} 32.
Ne4 {[%clk 0:00:39.3]} 32... Nd7 {[%clk 0:00:45.8]} 33. Rd5 {[%clk 0:00:33.1]}
33... Nb6 {[%clk 0:00:41.5]} 34. Rc5 {[%clk 0:00:31.8]} 34... Rd1 {[%clk
0:00:35.3]} 35. Nf6+ {[%clk 0:00:31.5]} 35... Kg7 {[%clk 0:00:35.5]} 36. Nxg4
{[%clk 0:00:32]} 36... Rxd4 {[%clk 0:00:36]} 37. Ne3 {[%clk 0:00:31.7]} 37...
Rd2 {[%clk 0:00:35.3]} 38. Rc6 {[%clk 0:00:31.5]} 38... Nd7 {[%clk 0:00:34.6]}
39. Nf5+ {[%clk 0:00:31.7]} 39... Kh7 {[%clk 0:00:32.7]} 40. Rxh6+ {[%clk
0:00:31.9]} 40... Kg8 {[%clk 0:00:32.9]} 41. Rd6 {[%clk 0:00:32.2]} 1-0